[Event "Early-Titled-Tuesday-Blitz-March-05-2024"]
[Site "Chess.com"]
[Date "2024.03.05"]
[Round "8"]
[White "xasid81"]
[Black "Defenstrator"]
[Result "1-0"]
[WhiteElo "2573"]
[BlackElo "2447"]
[TimeControl "180+1"]
[EndTime "9:32:58 PST"]
[Termination "xasid81 won by resignation"]

1. f4 {[%clk 0:03:00.9]} 1... e5 {[%clk 0:02:49.7]} 2. e4 {[%clk 0:02:54.1]}
2... d5 {[%clk 0:02:47.7]} 3. exd5 {[%clk 0:02:52.2]} 3... e4 {[%clk 0:02:48.5]}
4. Nc3 {[%clk 0:02:50.1]} 4... Nf6 {[%clk 0:02:46.7]} 5. d3 {[%clk 0:02:50.2]}
5... Bb4 {[%clk 0:02:47.4]} 6. a3 {[%clk 0:02:46.7]} 6... Bxc3+ {[%clk
0:02:41.6]} 7. bxc3 {[%clk 0:02:47.6]} 7... Qxd5 {[%clk 0:02:35.2]} 8. dxe4
{[%clk 0:02:42.6]} 8... Qxd1+ {[%clk 0:02:29.4]} 9. Kxd1 {[%clk 0:02:43.5]} 9...
Nxe4 {[%clk 0:02:29.8]} 10. Be3 {[%clk 0:02:43]} 10... Nxc3+ {[%clk 0:02:26]}
11. Kd2 {[%clk 0:02:41.6]} 11... Nd5 {[%clk 0:02:24.5]} 12. Bc5 {[%clk
0:02:41.3]} 12... Nxf4 {[%clk 0:02:22]} 13. a4 {[%clk 0:02:39.5]} 13... Nc6
{[%clk 0:02:20.5]} 14. Rb1 {[%clk 0:02:34.1]} 14... Bf5 {[%clk 0:02:13]} 15. Kc1
{[%clk 0:02:18.4]} 15... O-O-O {[%clk 0:02:09.2]} 16. Nf3 {[%clk 0:02:18.1]}
16... Rhe8 {[%clk 0:02:07.4]} 17. Bc4 {[%clk 0:02:11.4]} 17... Nxg2 {[%clk
0:02:03.1]} 18. Rg1 {[%clk 0:02:04.4]} 18... Ne3 {[%clk 0:01:59.7]} 19. Bxf7
{[%clk 0:02:02.3]} 19... Re4 {[%clk 0:01:44.1]} 20. Rxg7 {[%clk 0:01:46.8]}
20... Rd1+ {[%clk 0:01:24.4]} 21. Kb2 {[%clk 0:01:46.3]} 21... Rxb1+ {[%clk
0:01:25.1]} 22. Kxb1 {[%clk 0:01:47.1]} 22... Nxc2 {[%clk 0:01:14.2]} 23. Rg5
{[%clk 0:01:29.5]} 23... N2d4 {[%clk 0:00:33.1]} 24. Bxd4 {[%clk 0:01:08.9]}
24... Nxd4 {[%clk 0:00:17.6]} 25. Nxd4 {[%clk 0:01:08.3]} 25... Rxd4+ {[%clk
0:00:18.5]} 26. Rxf5 {[%clk 0:01:06.9]} 26... Rxa4 {[%clk 0:00:18.6]} 27. Rh5
{[%clk 0:01:03.2]} 27... b6 {[%clk 0:00:13.7]} 28. Rxh7 {[%clk 0:01:02]} 28...
Kb7 {[%clk 0:00:14]} 29. Bd5+ {[%clk 0:00:59.8]} 29... Ka6 {[%clk 0:00:14.9]}
30. Rxc7 {[%clk 0:00:54.1]} 30... Rh4 {[%clk 0:00:15.5]} 31. Rc2 {[%clk
0:00:47]} 31... Kb5 {[%clk 0:00:15]} 32. Be6 {[%clk 0:00:39.2]} 32... a5 {[%clk
0:00:13.5]} 33. h3 {[%clk 0:00:38.4]} 33... a4 {[%clk 0:00:10.6]} 34. Bg4 {[%clk
0:00:36.9]} 34... Ka5 {[%clk 0:00:08.2]} 35. Kb2 {[%clk 0:00:35]} 35... b5
{[%clk 0:00:06.7]} 36. Rf2 {[%clk 0:00:34.8]} 36... Rh8 {[%clk 0:00:04.8]} 37.
Rf5 {[%clk 0:00:34.1]} 37... Rd8 {[%clk 0:00:03.3]} 38. Kc2 {[%clk 0:00:25.4]}
38... Kb4 {[%clk 0:00:03.2]} 39. Be2 {[%clk 0:00:24.2]} 39... Rc8+ {[%clk
0:00:02]} 40. Kb1 {[%clk 0:00:21.1]} 40... Re8 {[%clk 0:00:02]} 41. Bxb5 {[%clk
0:00:16.6]} 41... a3 {[%clk 0:00:02.2]} 42. Bd3 {[%clk 0:00:11.3]} 42... Re3
{[%clk 0:00:02.6]} 43. Kc2 {[%clk 0:00:10.7]} 43... Rxh3 {[%clk 0:00:03.3]} 44.
Rf4+ {[%clk 0:00:10.5]} 44... Ka5 {[%clk 0:00:03.7]} 45. Rf5+ {[%clk 0:00:10.4]}
45... Kb4 {[%clk 0:00:04.5]} 46. Rb5+ {[%clk 0:00:10.4]} 46... Ka4 {[%clk
0:00:05.2]} 47. Rb8 {[%clk 0:00:11]} 47... Rh2+ {[%clk 0:00:05.6]} 48. Kc3
{[%clk 0:00:11.1]} 48... Rh5 {[%clk 0:00:04.7]} 49. Bc2+ {[%clk 0:00:08.8]}
49... Ka5 {[%clk 0:00:05.3]} 50. Bd3 {[%clk 0:00:08.7]} 50... Rc5+ {[%clk
0:00:04.2]} 51. Bc4 {[%clk 0:00:08.4]} 51... Rh5 {[%clk 0:00:04.4]} 52. Ra8+
{[%clk 0:00:08.1]} 52... Kb6 {[%clk 0:00:05.2]} 53. Rxa3 {[%clk 0:00:08.8]}
53... Rh3+ {[%clk 0:00:05.2]} 54. Bd3 {[%clk 0:00:09.2]} 54... Kc5 {[%clk
0:00:05.6]} 55. Ra5+ {[%clk 0:00:09.4]} 55... Kb6 {[%clk 0:00:06.5]} 56. Rg5
{[%clk 0:00:10.2]} 56... Rh6 {[%clk 0:00:05.6]} 57. Bc4 {[%clk 0:00:10]} 57...
Kc6 {[%clk 0:00:05.3]} 58. Kb4 {[%clk 0:00:10.1]} 58... Kb6 {[%clk 0:00:05.7]}
59. Ra5 {[%clk 0:00:09.6]} 59... Kb7 {[%clk 0:00:04.8]} 60. Re5 {[%clk
0:00:08.9]} 60... Kb6 {[%clk 0:00:04.7]} 61. Re7 {[%clk 0:00:09.2]} 61... Kc6
{[%clk 0:00:03.8]} 62. Ra7 {[%clk 0:00:07.1]} 62... Rh5 {[%clk 0:00:02.8]} 63.
Ra6+ {[%clk 0:00:07]} 63... Kb7 {[%clk 0:00:03.7]} 64. Rg6 {[%clk 0:00:07.3]}
64... Kc7 {[%clk 0:00:04.1]} 65. Bb5 {[%clk 0:00:04.2]} 65... Kb7 {[%clk
0:00:02.1]} 66. Ka5 {[%clk 0:00:04.1]} 66... Kc7 {[%clk 0:00:03]} 67. Rc6+
{[%clk 0:00:04.2]} 67... Kd8 {[%clk 0:00:03]} 68. Rb6 {[%clk 0:00:03.6]} 68...
Ke7 {[%clk 0:00:03.9]} 69. Rc6 {[%clk 0:00:03.6]} 69... Rg5 {[%clk 0:00:03.3]}
70. Kb6 {[%clk 0:00:03.9]} 70... Rg1 {[%clk 0:00:04]} 71. Rc7+ {[%clk
0:00:04.3]} 71... Kd6 {[%clk 0:00:04.2]} 72. Rc4 {[%clk 0:00:05.2]} 72... Kd5
{[%clk 0:00:04.8]} 73. Rc8 {[%clk 0:00:05.2]} 73... Rb1 {[%clk 0:00:04.6]} 74.
Rd8+ {[%clk 0:00:05.5]} 74... Ke5 {[%clk 0:00:05.5]} 75. Kc5 {[%clk 0:00:05.7]}
75... Rc1+ {[%clk 0:00:06.1]} 76. Bc4 {[%clk 0:00:06]} 76... Ra1 {[%clk
0:00:06.9]} 77. Re8+ {[%clk 0:00:06.4]} 77... Kf6 {[%clk 0:00:07.4]} 78. Bd5
{[%clk 0:00:06.1]} 78... Ra6 {[%clk 0:00:07.1]} 79. Re2 {[%clk 0:00:05.6]} 79...
Ra5+ {[%clk 0:00:06.2]} 80. Kd6 {[%clk 0:00:05.4]} 80... Ra3 {[%clk 0:00:06.4]}
81. Rf2+ {[%clk 0:00:05.2]} 81... Kg5 {[%clk 0:00:06.9]} 82. Ke5 {[%clk
0:00:05]} 82... Re3+ {[%clk 0:00:06.5]} 83. Be4 {[%clk 0:00:05.1]} 83... Rg3
{[%clk 0:00:07.1]} 84. Rf8 {[%clk 0:00:04.6]} 84... Ra3 {[%clk 0:00:06.5]} 85.
Rg8+ {[%clk 0:00:04.4]} 85... Kh6 {[%clk 0:00:07]} 86. Bf5 {[%clk 0:00:03.5]}
86... Ra6 {[%clk 0:00:06]} 87. Be6 {[%clk 0:00:03.1]} 87... Ra1 {[%clk
0:00:04.2]} 88. Kf6 {[%clk 0:00:02.9]} 88... Rf1+ {[%clk 0:00:03.9]} 89. Bf5
{[%clk 0:00:03.1]} 1-0

[Event "Early-Titled-Tuesday-Blitz-March-05-2024"]
[Site "Chess.com"]
[Date "2024.03.05"]
[Round "9"]
[White "Iskusnyh"]
[Black "JonasEilenberg"]
[Result "1-0"]
[WhiteElo "2695"]
[BlackElo "2543"]
[TimeControl "180+1"]
[EndTime "9:41:15 PST"]
[Termination "Iskusnyh won by resignation"]

1. d4 {[%clk 0:03:00.9]} 1... d5 {[%clk 0:02:59.7]} 2. c4 {[%clk 0:02:59.7]}
2... e6 {[%clk 0:02:59.9]} 3. Nf3 {[%clk 0:02:59.2]} 3... c6 {[%clk 0:03:00.5]}
4. b3 {[%clk 0:02:58]} 4... Nf6 {[%clk 0:02:59.3]} 5. e3 {[%clk 0:02:57.7]} 5...
Nbd7 {[%clk 0:02:59.7]} 6. Bd3 {[%clk 0:02:56.6]} 6... b6 {[%clk 0:03:00.1]} 7.
O-O {[%clk 0:02:51.9]} 7... Bb7 {[%clk 0:03:00.5]} 8. Bb2 {[%clk 0:02:51.4]}
8... Bd6 {[%clk 0:03:00.2]} 9. Nc3 {[%clk 0:02:47.1]} 9... O-O {[%clk
0:03:00.2]} 10. Qc2 {[%clk 0:02:46.4]} 10... Rc8 {[%clk 0:02:59.6]} 11. e4
{[%clk 0:02:43.9]} 11... dxe4 {[%clk 0:02:59.7]} 12. Nxe4 {[%clk 0:02:38.5]}
12... Nxe4 {[%clk 0:02:59.2]} 13. Bxe4 {[%clk 0:02:39.4]} 13... Nf6 {[%clk
0:02:59.7]} 14. Bd3 {[%clk 0:02:36.2]} 14... c5 {[%clk 0:02:55.1]} 15. dxc5
{[%clk 0:02:34]} 15... Bxc5 {[%clk 0:02:54.5]} 16. Bxf6 {[%clk 0:02:32.3]} 16...
Qxf6 {[%clk 0:02:55.1]} 17. Bxh7+ {[%clk 0:02:31.7]} 17... Kh8 {[%clk 0:02:50]}
18. Be4 {[%clk 0:02:32.6]} 18... Bxe4 {[%clk 0:02:50.2]} 19. Qxe4 {[%clk
0:02:32.1]} 19... Rfd8 {[%clk 0:02:47.8]} 20. Rad1 {[%clk 0:02:28.6]} 20... Qb2
{[%clk 0:02:39.6]} 21. Rxd8+ {[%clk 0:02:25.6]} 21... Rxd8 {[%clk 0:02:39.5]}
22. Qh4+ {[%clk 0:02:26]} 22... Kg8 {[%clk 0:02:39.7]} 23. Qxd8+ {[%clk
0:02:26]} 1-0

[Event "Early-Titled-Tuesday-Blitz-March-05-2024"]
[Site "Chess.com"]
[Date "2024.03.05"]
[Round "9"]
[White "HanSchut"]
[Black "tolimachess"]
[Result "1-0"]
[WhiteElo "2328"]
[BlackElo "2410"]
[TimeControl "180+1"]
[EndTime "9:42:19 PST"]
[Termination "HanSchut won by resignation"]

1. e4 {[%clk 0:03:00.9]} 1... c5 {[%clk 0:02:48.9]} 2. Nf3 {[%clk 0:03:01.2]}
2... e6 {[%clk 0:02:46.9]} 3. c4 {[%clk 0:03:01.1]} 3... Nc6 {[%clk 0:02:44.9]}
4. Nc3 {[%clk 0:03:01.4]} 4... a6 {[%clk 0:02:41.8]} 5. Be2 {[%clk 0:03:01.7]}
5... Qc7 {[%clk 0:02:39.4]} 6. O-O {[%clk 0:03:01.6]} 6... Nf6 {[%clk
0:02:39.3]} 7. d4 {[%clk 0:02:58.3]} 7... cxd4 {[%clk 0:02:37.5]} 8. Nxd4 {[%clk
0:02:59.2]} 8... b6 {[%clk 0:02:33.6]} 9. Be3 {[%clk 0:02:57.9]} 9... Bb7 {[%clk
0:02:32.8]} 10. f3 {[%clk 0:02:58.5]} 10... Bd6 {[%clk 0:02:25.8]} 11. g3 {[%clk
0:02:36.1]} 11... h5 {[%clk 0:02:23.9]} 12. Ndb5 {[%clk 0:02:29.8]} 12... axb5
{[%clk 0:02:13.2]} 13. Nxb5 {[%clk 0:02:29.6]} 13... Qb8 {[%clk 0:02:06.2]} 14.
Qxd6 {[%clk 0:02:22]} 14... h4 {[%clk 0:01:38.5]} 15. Nc7+ {[%clk 0:02:14.6]}
15... Kd8 {[%clk 0:01:35.9]} 16. Bxb6 {[%clk 0:02:13.8]} 1-0

[Event "Early-Titled-Tuesday-Blitz-March-05-2024"]
[Site "Chess.com"]
[Date "2024.03.05"]
[Round "9"]
[White "TitarovVasiliYouTube"]
[Black "giomar27"]
[Result "1-0"]
[WhiteElo "2519"]
[BlackElo "2404"]
[TimeControl "180+1"]
[EndTime "9:43:11 PST"]
[Termination "TitarovVasiliYouTube won by resignation"]

1. e4 {[%clk 0:02:53.4]} 1... a6 {[%clk 0:02:59.9]} 2. d4 {[%clk 0:02:50.7]}
2... g6 {[%clk 0:03:00.4]} 3. Nf3 {[%clk 0:02:50]} 3... Bg7 {[%clk 0:03:01]} 4.
Be2 {[%clk 0:02:49.1]} 4... b5 {[%clk 0:03:00.6]} 5. a4 {[%clk 0:02:46.7]} 5...
b4 {[%clk 0:03:00]} 6. c3 {[%clk 0:02:42.9]} 6... Bb7 {[%clk 0:02:59.3]} 7. Nbd2
{[%clk 0:02:36.1]} 7... bxc3 {[%clk 0:02:58.9]} 8. bxc3 {[%clk 0:02:36.6]} 8...
d6 {[%clk 0:02:59.1]} 9. O-O {[%clk 0:02:36.2]} 9... Nf6 {[%clk 0:02:57.4]} 10.
Bd3 {[%clk 0:02:35.8]} 10... O-O {[%clk 0:02:56.6]} 11. Re1 {[%clk 0:02:35.9]}
11... Nbd7 {[%clk 0:02:54.1]} 12. a5 {[%clk 0:02:33.1]} 12... e5 {[%clk
0:02:53.4]} 13. Ba3 {[%clk 0:02:27.2]} 13... Re8 {[%clk 0:02:52]} 14. d5 {[%clk
0:02:23.3]} 14... c6 {[%clk 0:02:50.4]} 15. c4 {[%clk 0:02:20.6]} 15... Rc8
{[%clk 0:02:36.7]} 16. Bxd6 {[%clk 0:02:15.9]} 16... c5 {[%clk 0:02:35.8]} 17.
Bc2 {[%clk 0:01:38.4]} 17... Nh5 {[%clk 0:02:35.3]} 18. Ba4 {[%clk 0:01:36.3]}
18... Nf4 {[%clk 0:02:12.5]} 19. Nb3 {[%clk 0:01:33.6]} 19... Nf6 {[%clk
0:01:41.4]} 20. Bxc5 {[%clk 0:01:26.2]} 1-0

[Event "Early-Titled-Tuesday-Blitz-March-05-2024"]
[Site "Chess.com"]
[Date "2024.03.05"]
[Round "9"]
[White "Crazy_girl99"]
[Black "isaak2009"]
[Result "1-0"]
[WhiteElo "2561"]
[BlackElo "2738"]
[TimeControl "180+1"]
[EndTime "9:43:31 PST"]
[Termination "Crazy_girl99 won by checkmate"]

1. e4 {[%clk 0:02:57.1]} 1... e5 {[%clk 0:03:00.2]} 2. Nf3 {[%clk 0:02:56.8]}
2... Nc6 {[%clk 0:03:00.7]} 3. Bb5 {[%clk 0:02:55.2]} 3... a6 {[%clk 0:03:00.7]}
4. Ba4 {[%clk 0:02:55.1]} 4... Bc5 {[%clk 0:03:01.3]} 5. c3 {[%clk 0:02:54.7]}
5... Nge7 {[%clk 0:03:01.4]} 6. d4 {[%clk 0:02:53]} 6... Ba7 {[%clk 0:03:00.4]}
7. O-O {[%clk 0:02:52.1]} 7... Ng6 {[%clk 0:03:00.3]} 8. Be3 {[%clk 0:02:50.9]}
8... O-O {[%clk 0:02:56.7]} 9. Nbd2 {[%clk 0:02:50.4]} 9... d6 {[%clk
0:02:56.6]} 10. h3 {[%clk 0:02:49.9]} 10... Kh8 {[%clk 0:02:56.4]} 11. Bc2
{[%clk 0:02:47]} 11... f5 {[%clk 0:02:50.4]} 12. Bg5 {[%clk 0:02:06.5]} 12...
Qe8 {[%clk 0:02:44.9]} 13. exf5 {[%clk 0:02:03.8]} 13... Bxf5 {[%clk 0:02:45.8]}
14. Re1 {[%clk 0:02:03.6]} 14... Bxc2 {[%clk 0:02:40]} 15. Qxc2 {[%clk
0:02:03.5]} 15... Qf7 {[%clk 0:02:40.9]} 16. Be3 {[%clk 0:01:53.1]} 16... exd4
{[%clk 0:02:39.7]} 17. cxd4 {[%clk 0:01:52.6]} 17... Nf4 {[%clk 0:02:29.7]} 18.
Ng5 {[%clk 0:01:42.9]} 18... Qh5 {[%clk 0:01:51.4]} 19. Ndf3 {[%clk 0:01:14.2]}
19... h6 {[%clk 0:01:26.6]} 20. Qh7# {[%clk 0:01:08.8]} 1-0

[Event "Early-Titled-Tuesday-Blitz-March-05-2024"]
[Site "Chess.com"]
[Date "2024.03.05"]
[Round "9"]
[White "Matalon"]
[Black "profedechess93"]
[Result "0-1"]
[WhiteElo "2502"]
[BlackElo "2642"]
[TimeControl "180+1"]
[EndTime "9:43:34 PST"]
[Termination "profedechess93 won by resignation"]

1. e4 {[%clk 0:02:49.3]} 1... e6 {[%clk 0:02:59.8]} 2. d4 {[%clk 0:02:48.7]}
2... d5 {[%clk 0:03:00.3]} 3. Nd2 {[%clk 0:02:46.2]} 3... Be7 {[%clk 0:03:00.2]}
4. c3 {[%clk 0:02:41.7]} 4... c5 {[%clk 0:02:52.2]} 5. exd5 {[%clk 0:02:38.7]}
5... Qxd5 {[%clk 0:02:49.7]} 6. Ngf3 {[%clk 0:02:36.1]} 6... Nf6 {[%clk
0:02:40.9]} 7. Bc4 {[%clk 0:02:27]} 7... Qh5 {[%clk 0:02:40.7]} 8. O-O {[%clk
0:02:19.1]} 8... O-O {[%clk 0:02:36.3]} 9. dxc5 {[%clk 0:02:03.5]} 9... Qxc5
{[%clk 0:02:32.7]} 10. Qe2 {[%clk 0:02:01]} 10... Nc6 {[%clk 0:02:27.3]} 11. Nb3
{[%clk 0:01:51.4]} 11... Qh5 {[%clk 0:02:27]} 12. Bg5 {[%clk 0:01:41.3]} 12...
e5 {[%clk 0:02:17.2]} 13. h3 {[%clk 0:01:13.4]} 13... e4 {[%clk 0:02:11.3]} 14.
Bxf6 {[%clk 0:00:21.2]} 14... exf3 {[%clk 0:02:09.6]} 0-1

[Event "Early-Titled-Tuesday-Blitz-March-05-2024"]
[Site "Chess.com"]
[Date "2024.03.05"]
[Round "9"]
[White "mertfelin"]
[Black "ccccvhhhj"]
[Result "0-1"]
[WhiteElo "2341"]
[BlackElo "2472"]
[TimeControl "180+1"]
[EndTime "9:44:08 PST"]
[Termination "ccccvhhhj won by resignation"]

1. e4 {[%clk 0:02:56.4]} 1... e6 {[%clk 0:02:59.8]} 2. d4 {[%clk 0:02:56.8]}
2... d5 {[%clk 0:02:59.6]} 3. Nc3 {[%clk 0:02:57.6]} 3... Bb4 {[%clk 0:02:59.5]}
4. e5 {[%clk 0:02:57.4]} 4... c5 {[%clk 0:02:59.6]} 5. a3 {[%clk 0:02:57.3]}
5... Bxc3+ {[%clk 0:03:00.1]} 6. bxc3 {[%clk 0:02:58.2]} 6... Ne7 {[%clk
0:03:00.3]} 7. Qg4 {[%clk 0:02:57.7]} 7... Kf8 {[%clk 0:03:01]} 8. h4 {[%clk
0:02:55.8]} 8... Qa5 {[%clk 0:03:01.1]} 9. Bd2 {[%clk 0:02:54.3]} 9... Qa4
{[%clk 0:03:01.7]} 10. h5 {[%clk 0:02:24.1]} 10... h6 {[%clk 0:03:01.9]} 11. Qf4
{[%clk 0:02:23.9]} 11... Nbc6 {[%clk 0:03:00.5]} 12. Rh3 {[%clk 0:02:24]} 12...
Ke8 {[%clk 0:02:53.8]} 13. Rf3 {[%clk 0:02:23.1]} 13... Rf8 {[%clk 0:02:49.5]}
14. Kd1 {[%clk 0:02:23.5]} 14... b6 {[%clk 0:02:48]} 15. Qg3 {[%clk 0:02:12.5]}
15... Nf5 {[%clk 0:02:43.6]} 16. Qh3 {[%clk 0:02:12.9]} 16... Ba6 {[%clk
0:02:40.7]} 17. Bxa6 {[%clk 0:02:09.8]} 17... Qxa6 {[%clk 0:02:41.6]} 18. g4
{[%clk 0:02:10.5]} 18... Nfe7 {[%clk 0:02:34.6]} 19. Ne2 {[%clk 0:02:11.1]}
19... Na5 {[%clk 0:02:28.6]} 20. a4 {[%clk 0:02:07.1]} 20... Nc4 {[%clk
0:02:27.5]} 21. Rd3 {[%clk 0:01:45.9]} 21... Nb2+ {[%clk 0:02:26.2]} 22. Ke1
{[%clk 0:01:44.7]} 22... Nxd3+ {[%clk 0:02:27.1]} 23. cxd3 {[%clk 0:01:44.9]}
23... Rc8 {[%clk 0:02:22.2]} 24. f4 {[%clk 0:01:42.6]} 24... Kd7 {[%clk
0:02:18.8]} 25. g5 {[%clk 0:01:37.1]} 25... Nf5 {[%clk 0:02:15]} 26. dxc5 {[%clk
0:01:34.1]} 26... bxc5 {[%clk 0:02:14]} 27. Kf2 {[%clk 0:01:33.6]} 27... Qb6
{[%clk 0:02:05.6]} 28. Rg1 {[%clk 0:01:31.5]} 28... c4+ {[%clk 0:01:59.4]} 29.
d4 {[%clk 0:01:31.9]} 29... Qb2 {[%clk 0:01:59.1]} 30. Be1 {[%clk 0:01:31.2]}
30... Rb8 {[%clk 0:01:54]} 31. Rg2 {[%clk 0:01:19.6]} 31... Qc2 {[%clk
0:01:46.3]} 32. g6 {[%clk 0:01:09.6]} 32... Rb2 {[%clk 0:01:40.7]} 33. Qg4
{[%clk 0:01:09.1]} 33... Qe4 {[%clk 0:01:34]} 34. Kg1 {[%clk 0:01:06.9]} 34...
Ne3 {[%clk 0:01:29.4]} 0-1

[Event "Early-Titled-Tuesday-Blitz-March-05-2024"]
[Site "Chess.com"]
[Date "2024.03.05"]
[Round "9"]
[White "jamengrand"]
[Black "Shivananda1964"]
[Result "1-0"]
[WhiteElo "2451"]
[BlackElo "2338"]
[TimeControl "180+1"]
[EndTime "9:44:10 PST"]
[Termination "jamengrand won by resignation"]

1. e4 {[%clk 0:02:59.7]} 1... e5 {[%clk 0:02:57.5]} 2. Nf3 {[%clk 0:02:59.8]}
2... Nc6 {[%clk 0:02:56]} 3. Nc3 {[%clk 0:03:00.1]} 3... g6 {[%clk 0:02:54.8]}
4. d4 {[%clk 0:02:58.3]} 4... exd4 {[%clk 0:02:53.8]} 5. Nd5 {[%clk 0:02:58.5]}
5... Bg7 {[%clk 0:02:53.3]} 6. Bg5 {[%clk 0:02:55.4]} 6... Nce7 {[%clk
0:02:53.6]} 7. Bc4 {[%clk 0:02:53.2]} 7... h6 {[%clk 0:02:45.1]} 8. Bh4 {[%clk
0:02:53]} 8... c6 {[%clk 0:02:44]} 9. Nxe7 {[%clk 0:02:29.8]} 9... Nxe7 {[%clk
0:02:42.9]} 10. O-O {[%clk 0:02:26.1]} 10... O-O {[%clk 0:02:35.9]} 11. e5
{[%clk 0:02:25.7]} 11... g5 {[%clk 0:02:20.4]} 12. Nxg5 {[%clk 0:02:16.4]} 12...
hxg5 {[%clk 0:02:14.4]} 13. Bxg5 {[%clk 0:02:16.5]} 13... d5 {[%clk 0:01:53.2]}
14. Bd3 {[%clk 0:02:16.1]} 14... c5 {[%clk 0:01:53]} 15. Qh5 {[%clk 0:02:12.5]}
15... Re8 {[%clk 0:01:44.4]} 16. Bh7+ {[%clk 0:02:02.5]} 16... Kf8 {[%clk
0:01:43.5]} 17. f4 {[%clk 0:02:02.3]} 17... Qb6 {[%clk 0:01:32.6]} 18. f5 {[%clk
0:01:59.4]} 18... Nxf5 {[%clk 0:01:10.2]} 19. Bxf5 {[%clk 0:01:55.7]} 19... Bxf5
{[%clk 0:01:09.5]} 20. Rxf5 {[%clk 0:01:54.3]} 20... Qe6 {[%clk 0:00:42.7]} 21.
Raf1 {[%clk 0:01:51.7]} 21... Kg8 {[%clk 0:00:42.1]} 22. Bf6 {[%clk 0:01:48]}
22... Bxf6 {[%clk 0:00:26.4]} 23. Rxf6 {[%clk 0:01:45.4]} 23... Qxe5 {[%clk
0:00:25.6]} 24. Qxf7+ {[%clk 0:01:45.6]} 1-0

[Event "Early-Titled-Tuesday-Blitz-March-05-2024"]
[Site "Chess.com"]
[Date "2024.03.05"]
[Round "9"]
[White "Alenzer"]
[Black "FischerKasparow"]
[Result "0-1"]
[WhiteElo "2156"]
[BlackElo "2083"]
[TimeControl "180+1"]
[EndTime "9:44:22 PST"]
[Termination "FischerKasparow won by resignation"]

1. e4 {[%clk 0:02:57.2]} 1... c5 {[%clk 0:02:55.7]} 2. Nf3 {[%clk 0:02:56.5]}
2... d6 {[%clk 0:02:56.1]} 3. c3 {[%clk 0:02:56.4]} 3... Nf6 {[%clk 0:02:56]} 4.
h3 {[%clk 0:02:55.7]} 4... Nbd7 {[%clk 0:02:56.2]} 5. Bd3 {[%clk 0:02:55.7]}
5... g6 {[%clk 0:02:55.9]} 6. Bc2 {[%clk 0:02:55.6]} 6... Bg7 {[%clk 0:02:56.4]}
7. O-O {[%clk 0:02:55.9]} 7... O-O {[%clk 0:02:56]} 8. d4 {[%clk 0:02:55.8]}
8... cxd4 {[%clk 0:02:54.5]} 9. cxd4 {[%clk 0:02:56.3]} 9... e5 {[%clk
0:02:54.6]} 10. Re1 {[%clk 0:02:55.3]} 10... Re8 {[%clk 0:02:49.9]} 11. Nc3
{[%clk 0:02:54.7]} 11... exd4 {[%clk 0:02:48.9]} 12. Nxd4 {[%clk 0:02:54.2]}
12... Nc5 {[%clk 0:02:48.3]} 13. Bg5 {[%clk 0:02:45.7]} 13... h6 {[%clk
0:02:46.8]} 14. Bh4 {[%clk 0:02:41.5]} 14... Qb6 {[%clk 0:02:45.4]} 15. Bxf6
{[%clk 0:02:05.2]} 15... Bxf6 {[%clk 0:02:44.5]} 16. Nd5 {[%clk 0:02:05.4]}
16... Qd8 {[%clk 0:02:39.6]} 17. Nxf6+ {[%clk 0:02:05.3]} 17... Qxf6 {[%clk
0:02:39.4]} 18. b4 {[%clk 0:01:59.5]} 18... Ne6 {[%clk 0:02:29.5]} 19. Nb5
{[%clk 0:01:54.6]} 19... Rd8 {[%clk 0:02:16.4]} 20. Qd2 {[%clk 0:01:38.6]} 20...
a6 {[%clk 0:02:04.8]} 21. Nxd6 {[%clk 0:01:32.3]} 21... Nf4 {[%clk 0:02:04.4]}
22. e5 {[%clk 0:01:30.9]} 22... Qg5 {[%clk 0:01:57.2]} 23. Qxf4 {[%clk
0:00:28.7]} 23... Qxf4 {[%clk 0:01:54.4]} 24. Rad1 {[%clk 0:00:28.4]} 24... Be6
{[%clk 0:01:46]} 25. Nxb7 {[%clk 0:00:27.4]} 25... Rxd1 {[%clk 0:01:44.6]} 26.
Bxd1 {[%clk 0:00:24.9]} 26... Qxb4 {[%clk 0:01:43.6]} 0-1

[Event "Early-Titled-Tuesday-Blitz-March-05-2024"]
[Site "Chess.com"]
[Date "2024.03.05"]
[Round "9"]
[White "LeoLV10"]
[Black "Kunalm64"]
[Result "0-1"]
[WhiteElo "2494"]
[BlackElo "2627"]
[TimeControl "180+1"]
[EndTime "9:44:28 PST"]
[Termination "Kunalm64 won by resignation"]

1. e4 {[%clk 0:02:53.3]} 1... c6 {[%clk 0:02:59.4]} 2. d4 {[%clk 0:02:52.7]}
2... d5 {[%clk 0:02:59.6]} 3. e5 {[%clk 0:02:53.3]} 3... Bf5 {[%clk 0:02:59.3]}
4. h4 {[%clk 0:02:53]} 4... h5 {[%clk 0:02:59.1]} 5. Bd3 {[%clk 0:02:52.6]} 5...
Bxd3 {[%clk 0:02:59.3]} 6. Qxd3 {[%clk 0:02:53.5]} 6... Qa5+ {[%clk 0:02:59.6]}
7. Nd2 {[%clk 0:02:53.6]} 7... e6 {[%clk 0:02:59.8]} 8. Nf3 {[%clk 0:02:54.1]}
8... Qa6 {[%clk 0:02:58.3]} 9. c4 {[%clk 0:02:52.9]} 9... Ne7 {[%clk 0:02:58.2]}
10. Kf1 {[%clk 0:02:40.3]} 10... Nd7 {[%clk 0:02:49.3]} 11. Rh3 {[%clk
0:02:25.4]} 11... Nf5 {[%clk 0:02:45.9]} 12. b3 {[%clk 0:02:24.8]} 12... Be7
{[%clk 0:02:38.5]} 13. Ke2 {[%clk 0:02:17.7]} 13... Qb6 {[%clk 0:02:26.5]} 14.
c5 {[%clk 0:02:17.1]} 14... Qc7 {[%clk 0:02:24.1]} 15. Rb1 {[%clk 0:02:10.6]}
15... b6 {[%clk 0:02:20]} 16. b4 {[%clk 0:02:10.5]} 16... a5 {[%clk 0:02:19.3]}
17. cxb6 {[%clk 0:02:10.1]} 17... Qxb6 {[%clk 0:02:17.7]} 18. bxa5 {[%clk
0:01:46.4]} 18... Qxa5 {[%clk 0:02:15.6]} 19. Bb2 {[%clk 0:01:42.7]} 19... O-O
{[%clk 0:02:12.7]} 20. Bc3 {[%clk 0:01:38.3]} 20... Qa7 {[%clk 0:02:07.3]} 21.
Rg1 {[%clk 0:01:33.6]} 21... Nh6 {[%clk 0:01:59.7]} 22. Ng5 {[%clk 0:01:31.3]}
22... Qa6 {[%clk 0:01:59.3]} 23. f4 {[%clk 0:01:15.6]} 23... Qxd3+ {[%clk
0:01:51.8]} 24. Rxd3 {[%clk 0:01:15.3]} 24... Rxa2 {[%clk 0:01:50.6]} 25. Rc1
{[%clk 0:01:15.9]} 25... c5 {[%clk 0:01:49.5]} 26. dxc5 {[%clk 0:01:08.2]} 26...
Nxc5 {[%clk 0:01:43.3]} 27. Rh3 {[%clk 0:01:03.7]} 27... Rb8 {[%clk 0:01:41.4]}
28. Nf3 {[%clk 0:00:53.3]} 28... Nf5 {[%clk 0:01:36]} 29. Rhh1 {[%clk
0:00:50.8]} 29... Ng3+ {[%clk 0:01:32.6]} 30. Ke3 {[%clk 0:00:48.7]} 30... Nxh1
{[%clk 0:01:31.4]} 31. Rxh1 {[%clk 0:00:49.6]} 31... Ra3 {[%clk 0:01:27]} 32.
Rc1 {[%clk 0:00:45]} 0-1